[Event "Irish New Year Events-IM1 2020"]
[Site "Dublin"]
[Date "2020.01.06"]
[Round "8.6"]
[White "Mannion, Stephen R"]
[Black "Venkatesan, Kavin"]
[Result "1/2-1/2"]
[ECO "B93"]
[WhiteElo "2283"]
[BlackElo "1815"]
[Annotator "ChessBase"]
[PlyCount "92"]
[EventDate "2020.01.02"]
[EventType "tourn"]
[EventCountry "IRL"]
[SourceTitle "playchess.com"]
[Source "ChessBase"]
[SourceQuality "1"]
[TimeControl "40/5400+30:1800+30"]

1. e4 {[%emt 0:00:00]} c5 {[%emt 0:00:00]} 2. Nf3 {[%emt 0:00:00]} d6 {[%emt 0:00:00]} 3. d4 {[%emt 0:00:00]} cxd4 {[%emt 0:00:00]} 4. Nxd4 {[%emt 0:00:00]} Nf6 {[%emt 0:00:01]} 5. Nc3 {[%emt 0:00:00]} a6 {[%emt 0:00:02]} 6. f4 {[%emt 0:00:07]} e5 {[%emt 0:01:03]} 7. Nf3 {[%emt 0:00:08]} Nbd7 {[%emt 0:00:27]} 8. Bd3 {[%emt 0:01:59]} Be7 {[%emt 0:00:56]} 9. O-O {[%emt 0:00:16]} O-O {[%emt 0:00:33]} 10. Kh1 {[%emt 0:00:28]} b5 {[%emt 0:02:09]} 11. a3 {[%emt 0:01:08]} Bb7 {[%emt 0:04:44]} 12. Qe1 {[%emt 0:01:59]} Qc7 {[%emt 0:01:46]} 13. Nh4 {[%emt 0:01:48]} g6 {[%emt 0:08:22]} 14. f5 {[%emt 0:00:26]} Nc5 {[%emt 0:20:24]} 15. Bh6 {[%emt 0:18:00]} Rfd8 {[%emt 0:00:47]} 16. fxg6 {[%emt 0:04:03]} fxg6 {[%emt 0:02:12]} 17. Qf2 {[%emt 0:02:08]} Nxd3 {[%emt 0:04:25]} 18. cxd3 {[%emt 0:04:45]} d5 {[%emt 0:00:56]} 19. Rac1 {[%emt 0:06:04]} Qd7 {[%emt 0:01:58]} 20. d4 {[%emt 0:05:29]} Qe6 {[%emt 0:02:21]} 21. exd5 {[%emt 0:09:08]} Bxd5 {[%emt 0:00:52]} 22. Nxd5 {[%emt 0:11:00]} Rxd5 {[%emt 0:01:15]} 23. dxe5 {[%emt 0:00:08]} Ng4 {[%emt 0:02:04]} 24. Qf4 {[%emt 0:00:08]} Nxh6 {[%emt 0:01:57]} 25. Qxh6 {[%emt 0:00:14]} Bxh4 {[%emt 0:01:02]} 26. Qxh4 {[%emt 0:00:43]} Rxe5 {[%emt 0:00:54]} 27. Rc7 {[%emt 0:02:30]} Rh5 {[%emt 0:02:01]} 28. Qe7 {[%emt 0:04:08]} Qxe7 {[%emt 0:00:46]} 29. Rxe7 {[%emt 0:00:02]} Rf8 {[%emt 0:00:46]} 30. Rxf8+ {[%emt 0:03:47]} Kxf8 {[%emt 0:00:06]} 31. Ra7 {[%emt 0:00:11]} Rc5 {[%emt 0:01:06]} 32. h3 {[%emt 0:00:30]} Rc2 {[%emt 0:01:46]} 33. b4 {[%emt 0:06:12]} Rc6 {[%emt 0:00:15]} 34. Rxh7 {[%emt 0:01:14]} Rc3 {[%emt 0:00:25]} 35. Ra7 {[%emt 0:01:08]} Rxa3 {[%emt 0:00:11]} 36. Kh2 {[%emt 0:00:27]} Ra4 {[%emt 0:00:25]} 37. Kg3 {[%emt 0:00:30]} Rxb4 {[%emt 0:00:10]} 38. Rxa6 {[%emt 0:01:06]} Kg7 {[%emt 0:00:15]} 39. Rb6 {[%emt 0:00:21]} Kh6 {[%emt 0:01:38]} 40. Rb8 {[%emt 0:02:47]} Kg7 {[%emt 0:02:19]} 41. Rb6 {[%emt 0:31:34]} Kh6 {[%emt 0:30:14]} 42. Rb7 {[%emt 0:02:05]} Kg5 {[%emt 0:03:30]} 43. h4+ {[%emt 0:01:16]} Kf6 {[%emt 0:00:21]} 44. Kh3 {[%emt 0:00:55]} Rb3+ {[%emt 0:06:53]} 45. Kg4 {[%emt 0:03:02]} Rb4+ {[%emt 0:00:11]} 46. Kh3 {[%emt 0:00:05]} Rb3+ {[%emt 0:00:08]} 1/2-1/2

[Event "Irish New Year Events-IM1 2020"]
[Site "Dublin"]
[Date "2020.01.06"]
[Round "8.7"]
[White "Baker, Chris W"]
[Black "Ahlander, Bjorn"]
[Result "1/2-1/2"]
[ECO "A46"]
[WhiteElo "2225"]
[BlackElo "2418"]
[Annotator "RC"]
[PlyCount "143"]
[EventDate "2020.01.02"]
[EventType "tourn"]
[EventCountry "IRL"]
[SourceTitle "playchess.com"]
[Source "ChessBase"]
[SourceQuality "1"]
[TimeControl "40/5400+30:1800+30"]

1. d4 {[%emt 0:00:00]} Nf6 {[%emt 0:00:00]} 2. Nf3 {[%emt 0:00:00]} e6 {[%emt 0:00:00]} 3. Bf4 {[%emt 0:04:38]} c5 {[%emt 0:00:00]} 4. c3 {[%emt 0:00:54]} Nc6 {[%emt 0:00:10]} 5. e3 {[%emt 0:01:41]} Nh5 {[%emt 0:00:17]} 6. Bg5 {[%emt 0:04:38]} Qb6 {[%emt 0:00:03]} 7. Qb3 {[%emt 0:00:38]} h6 {[%emt 0:00:40]} 8. Qxb6 {[%emt 0:02:27]} axb6 {[%emt 0:00:04]} 9. Bh4 {[%emt 0:00:13]} g5 {[%emt 0:00:29]} 10. Bg3 {[%emt 0:01:29]} Nxg3 {[%emt 0:00:03]} 11. hxg3 {[%emt 0:00:17]} Bg7 {[%emt 0:00:03]} 12. Na3 {[%emt 0:01:16]} d5 {[%emt 0:00:40]} 13. Bb5 {[%emt 0:05:47]} Ke7 {[%emt 0:01:07]} 14. Kd2 {[%emt 0:04:06]} Bd7 {[%emt 0:00:25]} 15. Rh5 {[%emt 0:10:15]} Ra5 {[%emt 0:01:51]} 16. Bxc6 {[%emt 0:06:29]} bxc6 {[%emt 0:00:32]} 17. Nc2 {[%emt 0:00:51]} Rha8 {[%emt 0:06:10]} 18. a3 {[%emt 0:01:53]} c4 {[%emt 0:00:06]} 19. Re1 {[%emt 0:03:10]} Be8 {[%emt 0:02:14]} 20. Rhh1 {[%emt 0:01:24]} f6 {[%emt 0:01:39]} 21. Kc1 {[%emt 0:01:57]} Bg6 {[%emt 0:01:05]} 22. g4 {[%emt 0:03:42]} Kd6 {[%emt 0:01:29]} 23. Nd2 {[%emt 0:04:38]} R5a7 {[%emt 0:00:53]} 24. f3 {[%emt 0:02:58]} Re7 {[%emt 0:02:06]} 25. Nf1 {[%emt 0:01:22]} Rae8 {[%emt 0:14:31]} 26. Ng3 {[%emt 0:01:01]} Rf7 {[%emt 0:00:02]} 27. e4 {[%emt 0:02:27]} Kd7 {[%emt 0:02:14]} 28. Ne3 {[%emt 0:08:38]} Bf8 {[%emt 0:00:09]} 29. Kd2 {[%emt 0:01:12]} Bd6 {[%emt 0:00:30]} 30. Nh5 {[%emt 0:00:26]} b5 {[%emt 0:03:18]} 31. Nxf6+ {[%emt 0:00:30]} Rxf6 {[%emt 0:00:42]} 32. e5 {[%emt 0:00:03]} Rf7 {[%emt 0:01:25]} 33. Rxh6 {[%emt 0:00:26]} Bxe5 {[%emt 0:09:32]} 34. dxe5 {[%emt 0:03:02]} Bd3 {[%emt 0:00:03]} 35. Reh1 {[%emt 0:00:46]} c5 {[%emt 0:01:05]} 36. Rh8 {[%emt 0:02:40]} d4 {[%emt 0:04:24]} 37. cxd4 {[%emt 0:02:17]} cxd4 {[%emt 0:00:04]} 38. Nc2 {[%emt 0:00:09]} Rxh8 {[%emt 0:02:30]} 39. Rxh8 {[%emt 0:00:07]} Bxc2 {[%emt 0:00:06]} 40. Kxc2 {[%emt 0:00:06]} Kc6 {[%emt 0:00:12]} 41. Rc8+ {[%emt 0:34:43]} Kd5 {[%emt 0:30:26]} 42. Rd8+ {[%emt 0:00:02]} Kxe5 {[%emt 0:02:54]} 43. Rb8 {[%emt 0:00:04]} Rh7 {[%emt 0:12:09]} 44. Rxb5+ {[%emt 0:00:42]} Kf4 {[%emt 0:00:02]} 45. Rc5 {[%emt 0:02:40]} Rh2 {[%emt 0:00:05]} 46. Rxc4 {[%emt 0:00:17]} Ke3 {[%emt 0:00:03]} 47. Kb3 {[%emt 0:00:58]} Rxg2 {[%emt 0:05:52]} 48. Rc6 {[%emt 0:00:57]} e5 {[%emt 0:03:58]} 49. Re6 {[%emt 0:01:08]} Kxf3 {[%emt 0:06:31]} 50. Rxe5 {[%emt 0:01:05]} Rxg4 {[%emt 0:00:03]} 51. a4 {[%emt 0:00:46]} d3 {[%emt 0:08:31]} 52. Kc3 {[%emt 0:00:57]} Rxa4 {[%emt 0:05:12]} 53. Rxg5 {[%emt 0:01:42]} Ra2 {[%emt 0:00:15]} 54. Rd5 {[%emt 0:00:22]} Ke4 {[%emt 0:04:21]} 55. Rd4+ {[%emt 0:00:54]} Ke5 {[%emt 0:00:02]} 56. Rxd3 {[%emt 0:00:16]} Ra8 {[%emt 0:00:13]} 57. Rd7 {[%emt 0:02:20]} Rc8+ {[%emt 0:00:13]} 58. Kb3 {[%emt 0:01:17]} Rb8+ {[%emt 0:00:01]} 59. Kc2 {[%emt 0:00:24]} Rc8+ {[%emt 0:00:03]} 60. Kb1 {[%emt 0:00:07]} Rb8 {[%emt 0:00:05]} 61. Rd3 {[%emt 0:00:40]} Ke4 {[%emt 0:00:30]} 62. Rc3 {[%emt 0:01:16]} Kd4 {[%emt 0:00:58]} 63. Kc2 {[%emt 0:00:20]} Rb4 {[%emt 0:02:23]} 64. b3 {[%emt 0:00:28]} Rb5 {[%emt 0:01:01]} 65. Rc4+ {[%emt 0:01:05]} Kd5 {[%emt 0:00:02]} 66. Kb2 {[%emt 0:00:23]} Rc5 {[%emt 0:00:40]} 67. Rb4 {[%emt 0:01:12]} Kc6 {[%emt 0:00:18]} 68. Rb8 {[%emt 0:00:09]} Kc7 {[%emt 0:00:25]} 69. Rh8 {[%emt 0:00:10]} Kb6 {[%emt 0:00:33]} 70. b4 {[%emt 0:00:30]} Rg5 {[%emt 0:00:19]} 71. Kb3 {[%emt 0:00:05]} Rg1 {[%emt 0:00:25]} 72. Rh6+ {[%emt 0:00:30]} 1/2-1/2

[Event "Irish New Year Events-IM1 2020"]
[Site "Dublin"]
[Date "2020.01.06"]
[Round "8.8"]
[White "Delaney, Killian"]
[Black "Waters, Michael"]
[Result "1-0"]
[ECO "A14"]
[WhiteElo "2278"]
[BlackElo "2130"]
[Annotator "ChessBase"]
[PlyCount "83"]
[EventDate "2020.01.02"]
[EventType "tourn"]
[EventCountry "IRL"]
[SourceTitle "playchess.com"]
[Source "ChessBase"]
[SourceQuality "1"]
[TimeControl "40/5400+30:1800+30"]

1. Nf3 {[%emt 0:00:00]} d5 {[%emt 0:03:52]} 2. c4 {[%emt 0:00:00]} e6 {[%emt 0:00:38]} 3. g3 {[%emt 0:00:54]} Nf6 {[%emt 0:00:26]} 4. Bg2 {[%emt 0:00:17]} c5 {[%emt 0:00:28]} 5. O-O {[%emt 0:00:35]} Nc6 {[%emt 0:00:32]} 6. b3 {[%emt 0:01:09]} Be7 {[%emt 0:00:18]} 7. e3 {[%emt 0:00:27]} d4 {[%emt 0:01:03]} 8. exd4 {[%emt 0:00:20]} Nxd4 {[%emt 0:00:52]} 9. Nxd4 {[%emt 0:03:56]} Qxd4 {[%emt 0:01:02]} 10. Nc3 {[%emt 0:00:05]} O-O {[%emt 0:00:25]} 11. Bb2 {[%emt 0:04:30]} Rd8 {[%emt 0:06:21]} 12. Nd5 {[%emt 0:08:46]} Qxb2 {[%emt 0:00:10]} 13. Nxe7+ {[%emt 0:00:03]} Kf8 {[%emt 0:00:21]} 14. Nxc8 {[%emt 0:00:04]} Raxc8 {[%emt 0:00:26]} 15. Bxb7 {[%emt 0:00:11]} Rb8 {[%emt 0:01:00]} 16. Bg2 {[%emt 0:00:40]} Rxd2 {[%emt 0:00:34]} 17. Qf3 {[%emt 0:00:15]} Rbd8 {[%emt 0:02:49]} 18. Rad1 {[%emt 0:05:25]} Rxd1 {[%emt 0:15:01]} 19. Rxd1 {[%emt 0:00:03]} Rxd1+ {[%emt 0:00:18]} 20. Qxd1 {[%emt 0:00:02]} Ke7 {[%emt 0:00:30]} 21. a4 {[%emt 0:09:35]} Qc3 {[%emt 0:01:31]} 22. Bc6 {[%emt 0:04:05]} g6 {[%emt 0:03:19]} 23. Kg2 {[%emt 0:02:03]} e5 {[%emt 0:06:36]} 24. h3 {[%emt 0:01:25]} h6 {[%emt 0:02:17]} 25. Bb7 {[%emt 0:06:15]} g5 {[%emt 0:06:15]} 26. Bc6 {[%emt 0:02:15]} e4 {[%emt 0:01:48]} 27. Qe2 {[%emt 0:01:00]} Qxb3 {[%emt 0:00:35]} 28. Bxe4 {[%emt 0:00:06]} Kf8 {[%emt 0:01:53]} 29. Bf3 {[%emt 0:05:30]} Qb6 {[%emt 0:04:54]} 30. Qe5 {[%emt 0:00:50]} a5 {[%emt 0:02:23]} 31. g4 {[%emt 0:03:03]} Nd7 {[%emt 0:02:03]} 32. Qf5 {[%emt 0:08:44]} Ke7 {[%emt 0:02:15]} 33. Bd5 {[%emt 0:02:43]} Qf6 {[%emt 0:01:00]} 34. Qb1 {[%emt 0:00:37]} Qd6 {[%emt 0:05:02]} 35. Qe1+ {[%emt 0:02:27]} Qe5 {[%emt 0:07:48]} 36. Qxa5 {[%emt 0:00:15]} f5 {[%emt 0:00:54]} 37. gxf5 {[%emt 0:07:02]} Qxf5 {[%emt 0:01:24]} 38. Qc7 {[%emt 0:01:09]} Kf8 {[%emt 0:02:11]} 39. a5 {[%emt 0:00:50]} g4 {[%emt 0:00:14]} 40. Qd8+ {[%emt 0:00:36]} Kg7 {[%emt 0:00:40]} 41. Qg8+ {[%emt 0:30:09]} Kf6 {[%emt 0:30:33]} 42. Qf7+ {[%emt 0:00:08]} 1-0

[Event "Irish New Year Events-IM1 2020"]
[Site "Dublin"]
[Date "2020.01.06"]
[Round "8.9"]
[White "Melaugh, Shane"]
[Black "Hammar, Bengt"]
[Result "1-0"]
[ECO "E92"]
[WhiteElo "2207"]
[BlackElo "2175"]
[Annotator "ChessBase"]
[PlyCount "75"]
[EventDate "2020.01.02"]
[EventType "tourn"]
[EventCountry "IRL"]
[SourceTitle "playchess.com"]
[Source "ChessBase"]
[SourceQuality "1"]
[TimeControl "40/5400+30:1800+30"]

1. c4 {[%emt 0:27:19]} e5 {[%emt 0:02:00]} 2. Nc3 {[%emt 0:00:18]} Nf6 {[%emt 0:00:25]} 3. Nf3 {[%emt 0:00:05]} Nc6 {[%emt 0:00:07]} 4. e4 {[%emt 0:00:03]} g6 {[%emt 0:02:35]} 5. d4 {[%emt 0:00:19]} exd4 {[%emt 0:01:29]} 6. Nxd4 {[%emt 0:00:08]} d6 {[%emt 0:02:01]} 7. Be2 {[%emt 0:00:32]} Bg7 {[%emt 0:00:19]} 8. Be3 {[%emt 0:00:09]} O-O {[%emt 0:00:46]} 9. f3 {[%emt 0:02:35]} Re8 {[%emt 0:00:59]} 10. Qd2 {[%emt 0:00:18]} Be6 {[%emt 0:09:53]} 11. O-O-O {[%emt 0:04:01]} a6 {[%emt 0:03:17]} 12. Nxe6 {[%emt 0:00:58]} Rxe6 {[%emt 0:00:46]} 13. g4 {[%emt 0:02:05]} Re8 {[%emt 0:05:01]} 14. Bh6 {[%emt 0:02:43]} Ne5 {[%emt 0:04:33]} 15. Bxg7 {[%emt 0:01:40]} Kxg7 {[%emt 0:01:05]} 16. g5 {[%emt 0:00:13]} Ng8 {[%emt 0:01:24]} 17. f4 {[%emt 0:00:57]} Nd7 {[%emt 0:00:16]} 18. h4 {[%emt 0:07:01]} Nc5 {[%emt 0:03:59]} 19. Qd4+ {[%emt 0:01:23]} Kf8 {[%emt 0:00:45]} 20. f5 {[%emt 0:01:50]} Qe7 {[%emt 0:04:53]} 21. Qh8 {[%emt 0:01:10]} f6 {[%emt 0:01:21]} 22. gxf6 {[%emt 0:05:24]} Qxf6 {[%emt 0:00:45]} 23. Qxh7 {[%emt 0:00:24]} gxf5 {[%emt 0:02:28]} 24. Nd5 {[%emt 0:08:15]} Qh6+ {[%emt 0:01:47]} 25. Qxh6+ {[%emt 0:00:05]} Nxh6 {[%emt 0:00:06]} 26. Nxc7 {[%emt 0:00:04]} Nxe4 {[%emt 0:00:10]} 27. Nxa8 {[%emt 0:00:22]} Rxa8 {[%emt 0:00:01]} 28. Rhf1 {[%emt 0:00:42]} Ke7 {[%emt 0:01:13]} 29. Bd3 {[%emt 0:00:08]} Rc8 {[%emt 0:01:06]} 30. Kb1 {[%emt 0:00:46]} Ke6 {[%emt 0:02:34]} 31. Bxe4 {[%emt 0:03:16]} fxe4 {[%emt 0:00:05]} 32. Rd4 {[%emt 0:00:06]} Ke5 {[%emt 0:00:32]} 33. Rd5+ {[%emt 0:00:06]} Ke6 {[%emt 0:00:02]} 34. Rh5 {[%emt 0:00:18]} Nf7 {[%emt 0:01:53]} 35. b3 {[%emt 0:00:53]} b5 {[%emt 0:00:47]} 36. Re1 {[%emt 0:00:23]} bxc4 {[%emt 0:01:32]} 37. Rxe4+ {[%emt 0:00:05]} Ne5 {[%emt 0:00:08]} 38. bxc4 {[%emt 0:00:10]} 1-0

[Event "Irish New Year Events-IM1 2020"]
[Site "Dublin"]
[Date "2020.01.06"]
[Round "9.7"]
[White "Hammar, Bengt"]
[Black "Kanyamarala, Tarun"]
[Result "0-1"]
[ECO "B15"]
[WhiteElo "2175"]
[BlackElo "2320"]
[Annotator "ChessBase"]
[PlyCount "54"]
[EventDate "2020.01.02"]
[EventType "tourn"]
[EventCountry "IRL"]
[SourceTitle "playchess.com"]
[Source "ChessBase"]
[SourceQuality "1"]
[TimeControl "40/5400+30:1800+30"]

1. e4 {[%emt 0:00:04]} c6 {[%emt 0:00:00]} 2. d4 {[%emt 0:00:42]} d5 {[%emt 0:00:09]} 3. Nc3 {[%emt 0:00:19]} dxe4 {[%emt 0:00:11]} 4. Nxe4 {[%emt 0:00:07]} Nf6 {[%emt 0:00:06]} 5. Nxf6+ {[%emt 0:00:15]} exf6 {[%emt 0:02:24]} 6. c3 {[%emt 0:02:54]} Bd6 {[%emt 0:00:02]} 7. Bd3 {[%emt 0:00:11]} O-O {[%emt 0:00:08]} 8. Qc2 {[%emt 0:01:01]} Re8+ {[%emt 0:00:02]} 9. Ne2 {[%emt 0:00:09]} h5 {[%emt 0:00:08]} 10. Be3 {[%emt 0:01:48]} Nd7 {[%emt 0:00:05]} 11. O-O-O {[%emt 0:03:38]} Nf8 {[%emt 0:00:14]} 12. Kb1 {[%emt 0:02:10]} Be6 {[%emt 0:00:03]} 13. Nf4 {[%emt 0:10:09]} Bxf4 {[%emt 0:01:02]} 14. Bxf4 {[%emt 0:00:52]} b5 {[%emt 0:00:40]} 15. Rhe1 {[%emt 0:04:00]} a5 {[%emt 0:08:58]} 16. Re2 {[%emt 0:05:42]} Qd5 {[%emt 0:12:34]} 17. b3 {[%emt 0:00:18]} a4 {[%emt 0:00:30]} 18. c4 {[%emt 0:04:49]} axb3 {[%emt 0:00:41]} 19. axb3 {[%emt 0:00:15]} bxc4 {[%emt 0:05:19]} 20. bxc4 {[%emt 0:00:18]} Qxg2 {[%emt 0:09:00]} 21. Be4 {[%emt 0:04:16]} Qg4 {[%emt 0:00:18]} 22. Bc7 {[%emt 0:01:30]} Bxc4 {[%emt 0:07:47]} 23. Re3 {[%emt 0:04:47]} Ba2+ {[%emt 0:02:19]} 24. Kc1 {[%emt 0:00:15]} Bd5 {[%emt 0:00:48]} 25. f3 {[%emt 0:01:54]} Qd7 {[%emt 0:02:34]} 26. Bf4 {[%emt 0:01:34]} Ra1+ {[%emt 0:00:13]} 27. Kd2 {[%emt 0:00:10]} Ra2 {[%emt 0:00:16]} 0-1

[Event "Irish New Year Events-IM1 2020"]
[Site "Dublin"]
[Date "2020.01.06"]
[Round "9.8"]
[White "Waters, Michael"]
[Black "Melaugh, Shane"]
[Result "0-1"]
[ECO "A04"]
[WhiteElo "2130"]
[BlackElo "2207"]
[Annotator "ChessBase"]
[PlyCount "182"]
[EventDate "2020.01.02"]
[EventType "tourn"]
[EventCountry "IRL"]
[SourceTitle "playchess.com"]
[Source "ChessBase"]
[SourceQuality "1"]
[TimeControl "40/5400+30:1800+30"]

1. Nf3 {[%emt 0:00:00]} e6 {[%emt 0:00:17]} 2. b3 {[%emt 0:00:00]} f5 {[%emt 0:00:06]} 3. Bb2 {[%emt 0:00:12]} Nf6 {[%emt 0:00:06]} 4. d4 {[%emt 0:01:08]} Be7 {[%emt 0:00:05]} 5. e3 {[%emt 0:00:31]} O-O {[%emt 0:00:11]} 6. Bd3 {[%emt 0:00:34]} b6 {[%emt 0:00:33]} 7. Nbd2 {[%emt 0:01:34]} Bb7 {[%emt 0:00:06]} 8. Qe2 {[%emt 0:00:48]} Ne4 {[%emt 0:02:44]} 9. Bxe4 {[%emt 0:05:53]} fxe4 {[%emt 0:00:20]} 10. Ne5 {[%emt 0:00:19]} d6 {[%emt 0:00:18]} 11. Nec4 {[%emt 0:00:32]} d5 {[%emt 0:03:17]} 12. Ne5 {[%emt 0:00:40]} Nc6 {[%emt 0:00:36]} 13. f4 {[%emt 0:01:37]} Nxe5 {[%emt 0:03:16]} 14. dxe5 {[%emt 0:01:12]} c5 {[%emt 0:00:06]} 15. O-O {[%emt 0:04:39]} Qe8 {[%emt 0:01:21]} 16. Qg4 {[%emt 0:00:43]} Rf5 {[%emt 0:00:05]} 17. Rae1 {[%emt 0:01:59]} h5 {[%emt 0:00:25]} 18. Qh3 {[%emt 0:05:00]} Qg6 {[%emt 0:02:19]} 19. Kh1 {[%emt 0:00:10]} Kf7 {[%emt 0:07:18]} 20. Rg1 {[%emt 0:10:53]} Qg4 {[%emt 0:02:14]} 21. Qxg4 {[%emt 0:08:11]} hxg4 {[%emt 0:00:03]} 22. g3 {[%emt 0:00:31]} Rd8 {[%emt 0:05:59]} 23. h4 {[%emt 0:01:05]} b5 {[%emt 0:02:04]} 24. Kh2 {[%emt 0:00:57]} Rh5 {[%emt 0:00:32]} 25. Re2 {[%emt 0:02:30]} g5 {[%emt 0:00:34]} 26. fxg5 {[%emt 0:00:36]} Bxg5 {[%emt 0:00:03]} 27. Kg2 {[%emt 0:02:07]} Bh6 {[%emt 0:01:04]} 28. Rf1+ {[%emt 0:00:41]} Ke7 {[%emt 0:01:09]} 29. Rf6 {[%emt 0:00:49]} d4 {[%emt 0:00:30]} 30. Nf1 {[%emt 0:01:50]} Bg7 {[%emt 0:01:26]} 31. exd4 {[%emt 0:06:01]} cxd4 {[%emt 0:00:37]} 32. Ba3+ {[%emt 0:00:14]} Kd7 {[%emt 0:02:19]} 33. Rf7+ {[%emt 0:01:28]} Kc8 {[%emt 0:00:04]} 34. Rxg7 {[%emt 0:00:40]} e3+ {[%emt 0:01:24]} 35. Rxb7 {[%emt 0:00:48]} Kxb7 {[%emt 0:00:02]} 36. Bd6 {[%emt 0:00:22]} b4 {[%emt 0:02:46]} 37. Nh2 {[%emt 0:01:37]} Rg8 {[%emt 0:00:03]} 38. Kf1 {[%emt 0:01:21]} Kc6 {[%emt 0:00:34]} 39. Ke1 {[%emt 0:04:29]} a5 {[%emt 0:00:21]} 40. Be7 {[%emt 0:06:29]} Rxe5 {[%emt 0:00:33]} 41. Bg5 {[%emt 0:30:14]} Re4 {[%emt 0:30:03]} 42. Bf4 {[%emt 0:01:38]} Kd5 {[%emt 0:03:10]} 43. Nf1 {[%emt 0:01:49]} Rc8 {[%emt 0:01:23]} 44. Kd1 {[%emt 0:01:25]} Rf8 {[%emt 0:00:47]} 45. Nh2 {[%emt 0:01:07]} a4 {[%emt 0:00:55]} 46. bxa4 {[%emt 0:01:23]} e5 {[%emt 0:06:33]} 47. Bg5 {[%emt 0:02:01]} Ra8 {[%emt 0:00:07]} 48. Kc1 {[%emt 0:01:03]} Rxa4 {[%emt 0:00:50]} 49. Kb2 {[%emt 0:00:04]} Ra7 {[%emt 0:01:19]} 50. Nf1 {[%emt 0:04:55]} Rf7 {[%emt 0:00:29]} 51. Re1 {[%emt 0:00:14]} Rf5 {[%emt 0:02:35]} 52. Kb3 {[%emt 0:01:14]} Rf3 {[%emt 0:00:33]} 53. Kb2 {[%emt 0:00:04]} Kc4 {[%emt 0:00:21]} 54. Bh6 {[%emt 0:01:52]} Rf2 {[%emt 0:02:43]} 55. Bg5 {[%emt 0:00:43]} Rf3 {[%emt 0:03:15]} 56. Bh6 {[%emt 0:00:16]} Kd5 {[%emt 0:00:39]} 57. Bg5 {[%emt 0:00:13]} Ke6 {[%emt 0:00:08]} 58. Bh6 {[%emt 0:01:29]} Kf5 {[%emt 0:00:08]} 59. Bg5 {[%emt 0:00:22]} Kg6 {[%emt 0:00:06]} 60. Be7 {[%emt 0:00:25]} e2 {[%emt 0:00:23]} 61. Nd2 {[%emt 0:00:32]} Ree3 {[%emt 0:00:10]} 62. Bxb4 {[%emt 0:01:07]} Rxg3 {[%emt 0:00:08]} 63. a4 {[%emt 0:00:16]} Rh3 {[%emt 0:05:03]} 64. Be7 {[%emt 0:00:46]} Kf5 {[%emt 0:02:33]} 65. a5 {[%emt 0:00:59]} Ke6 {[%emt 0:00:05]} 66. Bg5 {[%emt 0:00:24]} Ra3 {[%emt 0:00:07]} 67. Rxe2 {[%emt 0:00:53]} Rxa5 {[%emt 0:00:07]} 68. Rg2 {[%emt 0:02:17]} Rb5+ {[%emt 0:01:29]} 69. Ka2 {[%emt 0:00:26]} Rc3 {[%emt 0:00:36]} 70. Ne4 {[%emt 0:00:56]} Rc7 {[%emt 0:02:20]} 71. Bc1 {[%emt 0:00:49]} Rc6 {[%emt 0:03:35]} 72. Ba3 {[%emt 0:03:30]} Kd5 {[%emt 0:00:12]} 73. Nc5 {[%emt 0:01:44]} Ra5 {[%emt 0:03:51]} 74. Nb3 {[%emt 0:00:31]} Ra7 {[%emt 0:00:03]} 75. Kb2 {[%emt 0:01:14]} Rg7 {[%emt 0:00:59]} 76. h5 {[%emt 0:00:20]} Rg5 {[%emt 0:00:15]} 77. Bf8 {[%emt 0:00:23]} Rg8 {[%emt 0:01:47]} 78. Bb4 {[%emt 0:01:24]} Rh6 {[%emt 0:00:09]} 79. Be1 {[%emt 0:00:36]} Rxh5 {[%emt 0:00:07]} 80. Bg3 {[%emt 0:00:13]} Rh3 {[%emt 0:00:34]} 81. Kc1 {[%emt 0:00:35]} e4 {[%emt 0:00:05]} 82. Kd1 {[%emt 0:00:26]} e3 {[%emt 0:01:25]} 83. Rg1 {[%emt 0:01:48]} Ke4 {[%emt 0:00:17]} 84. Ke2 {[%emt 0:01:03]} Rc8 {[%emt 0:00:10]} 85. Kd1 {[%emt 0:00:11]} Rc3 {[%emt 0:01:00]} 86. Be1 {[%emt 0:00:14]} e2+ {[%emt 0:02:30]} 87. Kc1 {[%emt 0:00:21]} Rc8 {[%emt 0:06:20]} 88. Rxg4+ {[%emt 0:00:10]} Kf5 {[%emt 0:01:20]} 89. Rxd4 {[%emt 0:03:12]} Rxb3 {[%emt 0:00:08]} 90. Kd2 {[%emt 0:00:10]} Rb1 {[%emt 0:01:20]} 91. Rd7 {[%emt 0:01:20]} Rd1+ {[%emt 0:00:30]} 0-1